bitfinex-derivatives/quotes_ETHF0:USTF0_20241231
["timestamp","ask_amount","ask_price","bid_price","bid_amount"]
[1735651757557,3.2078,3435.1,3434.5,0.76932037]
[1735651757756,0.5056,3435.5,3434.6,4.43188605]
[1735651757952,0.5056,3435.5,3434.7,3.54245256]
[1735651758157,3.2078,3436.2,3434.8,2.04543247]
[1735651758360,3.2078,3436.2,3435.4,3.2078]
[1735651758560,3.2078,3436.2,3435.5,0.76932037]
[1735651758860,3.2078,3436.2,3435.0,3.2078]
[1735651758861,2.77313219,3435.6,3435.0,3.2078]
[1735651759061,0.29155,3435.2,3435.1,0.76955454]
[1735651760057,2.77313219,3435.6,3435.1,0.36461447]
[1735651760362,2.77313219,3435.6,3435.0,3.2078]
[1735651760363,0.29154,3435.3,3435.2,0.76558077]
[1735651760666,2.77313219,3435.6,3435.2,0.76593629]
[1735651760856,0.2916,3434.6,3434.5,3.2078]
[1735651761060,0.2916,3434.6,3434.5,3.57242855]
[1735651761670,0.2916,3434.6,3434.5,0.36462855]
[1735651761966,0.2916,3434.6,3434.5,8.55e-06]
[1735651762161,0.8277,3434.6,3434.5,8.55e-06]
[1735651762468,0.29169,3433.6,3433.5,0.5122]
[1735651762664,0.29169,3433.5,3433.4,3.2078]
[1735651762969,0.29175,3432.9,3432.8,3.2078]
[1735651763470,3.2078,3433.1,3432.1,4.41102426]
[1735651763765,0.2918,3432.2,3432.1,4.41102426]
[1735651763966,0.72935,3433.0,3432.1,4.41102426]
[1735651764267,0.72935,3433.0,3432.9,3.2078]
[1735651764268,0.29174,3433.0,3432.9,3.2078]
[1735651764469,3.93687,3434.4,3432.9,3.2078]
[1735651764772,3.93687,3434.4,3433.6,3.2078]
[1735651764773,0.29168,3433.7,3433.6,3.2078]
[1735651765459,0.29168,3433.7,3433.6,44.0078]
[1735651765665,0.29168,3433.7,3433.6,3.2078]
[1735651765970,0.72911,3434.2,3433.1,0.5106]
[1735651766172,6.71010219,3433.9,3433.2,1.27678206]
[1735651766471,0.29171,3433.3,3433.2,1.27678206]
[1735651766671,0.29173,3433.1,3433.0,3.2078]
[1735651767068,0.29179,3432.4,3432.3,0.4957]
[1735651767266,0.29181,3432.1,3432.0,3.2078]
[1735651767468,0.29186,3431.5,3431.4,3.2078]
[1735651767770,0.72958,3432.0,3431.4,3.93770828]
[1735651767771,0.36452255,3432.0,3431.4,3.93770828]
[1735651768071,0.29186,3431.5,3431.4,0.72990828]
[1735651768272,0.29189,3431.2,3431.1,4.41102426]
[1735651768766,0.29191,3431.0,3430.9,0.5434]
[1735651768972,7.56851725,3431.6,3430.7,3.2078]
[1735651769166,7.56851725,3431.6,3429.7,4.904]
[1735651769167,0.72969,3431.4,3430.3,3.2078]
[1735651769367,0.29196,3430.4,3430.3,3.2078]
[1735651769774,3.2078,3431.2,3430.3,3.2078]
[1735651769975,0.29196,3430.4,3430.3,3.2078]
[1735651770474,3.2078,3431.1,3430.3,3.2078]
[1735651770775,6.35926676,3432.4,3430.7,3.2078]
[1735651770965,0.29184,3431.9,3431.4,3.2078]
[1735651771168,0.29184,3431.9,3431.5,0.5508]
[1735651771366,0.29183,3431.9,3431.8,3.2078]
[1735651772368,4.2491,3432.8,3431.8,3.2078]
[1735651772573,0.29177,3432.6,3432.2,3.2078]
[1735651772776,0.2918,3432.4,3432.3,0.39901026]
[1735651773879,0.2918,3432.4,3432.3,2.6e-07]
[1735651774068,0.2918,3432.4,3432.3,0.36490449]
[1735651774376,0.2918,3432.4,3432.3,1.02901308]
[1735651774565,5.2918,3432.4,3432.3,1.02901308]
[1735651774771,8.49959,3432.4,3432.3,9.24e-06]
[1735651774975,0.29179,3432.4,3432.3,9.24e-06]
[1735651775182,0.81519,3432.4,3432.3,0.5839537]
[1735651775373,0.29186,3431.6,3431.5,0.5508]
[1735651775572,0.29186,3431.5,3431.4,3.2078]
[1735651775972,0.2919,3431.1,3431.0,3.2078]
[1735651776271,3.2078,3431.3,3430.3,3.2078]
[1735651776467,0.29191,3431.0,3430.5,0.29194]
[1735651776673,0.2919,3431.1,3430.7,3.2078]
[1735651776872,3.2078,3432.2,3430.7,3.2078]
[1735651776873,1.45914,3432.0,3430.7,3.2078]
[1735651777074,0.29192,3430.8,3430.7,3.2078]
[1735651777575,3.2078,3431.8,3430.7,3.2078]
[1735651777777,3.2078,3432.2,3431.5,3.2078]
[1735651777982,0.29184,3431.8,3431.7,3.2078]
[1735651778376,0.29184,3431.8,3431.7,4.3940824]
[1735651778978,0.29182,3432.1,3431.7,4.6859324]
[1735651779181,3.2078,3432.7,3431.7,4.3940824]
[1735651779381,0.72935,3433.1,3432.2,3.2078]
[1735651779583,3.2078,3433.2,3432.3,1.1862824]
[1735651779785,0.29179,3432.4,3432.3,1.1862824]
[1735651782380,0.29178,3432.6,3432.3,1.1862824]
[1735651782578,0.29179,3432.4,3432.3,1.1862824]
[1735651782788,0.72935,3433.0,3432.3,2.4630531]
[1735651782989,0.72937,3432.9,3432.2,3.2078]
[1735651783189,0.2918,3432.3,3432.2,3.2078]
[1735651783389,0.72939,3432.8,3432.2,4.48463675]
[1735651783590,0.29179,3432.4,3432.3,2.5539875]
[1735651783802,0.29179,3432.4,3432.3,1.27715075]
[1735651784091,0.29179,3432.4,3432.3,0.45613524]
[1735651784799,0.29179,3432.4,3432.3,1.13408847]
[1735651784999,3.44325676,3432.4,3432.3,0.51936847]
[1735651785199,3.2078,3432.7,3432.3,1.24929116]
[1735651785394,0.29178,3432.5,3432.4,1.31385743]
[1735651786896,0.29182,3432.1,3431.9,3.2078]
[1735651787094,0.72942,3432.7,3432.0,2.21666911]
[1735651787298,0.29181,3432.1,3432.0,2.00699728]
[1735651787603,0.29181,3432.1,3432.0,9.60571149]
[1735651788398,0.29181,3432.1,3432.0,4.10823262]
[1735651788698,0.29181,3432.1,3432.0,2.83105253]
[1735651789104,0.29181,3432.1,3432.0,3.05402693]
[1735651789296,0.29181,3432.1,3432.0,2.71844871]
[1735651789594,0.29181,3432.1,3432.0,2.71879048]
[1735651789799,5.29181,3432.1,3432.0,1.88819878]
[1735651790000,0.29181,3432.1,3432.0,7.41e-06]
[1735651790300,5.29181,3432.1,3432.0,7.41e-06]
[1735651792901,0.29192,3430.8,3430.7,3.2078]
[1735651793401,3.2078,3431.3,3430.7,4.48545775]
[1735651793705,0.29192,3430.8,3430.7,4.48545775]
[1735651793897,0.29192,3430.8,3430.7,3.2078]
[1735651794099,0.29192,3430.8,3430.7,4.485457]
[1735651794496,0.72967,3431.5,3430.7,6.64524999]
[1735651794696,0.29192,3430.9,3430.8,2.15979299]
[1735651794906,0.29192,3430.9,3430.8,2.15976631]
[1735651795104,0.29192,3430.9,3430.8,1.58808302]
[1735651795504,0.29192,3430.9,3430.8,0.70597371]
[1735651795706,0.29192,3430.9,3430.8,1.98365091]
[1735651795901,0.29192,3430.9,3430.8,0.7029467]
[1735651796098,0.29192,3430.9,3430.8,1.98066191]
[1735651796406,0.29192,3430.9,3430.8,0.70295865]
[1735651797099,0.29192,3430.9,3430.8,1.98068432]
[1735651797399,0.29192,3430.9,3430.8,1.15928926]
[1735651798008,0.29192,3430.9,3430.8,0.45633061]
[1735651798308,0.3645187,3431.1,3430.8,1.15845515]
[1735651798493,0.29191,3431.0,3430.9,1.15845515]
[1735651799106,0.29191,3431.0,3430.9,2.42849179]
[1735651799397,3.49971,3431.0,3430.9,2.00805473]
[1735651800100,3.49971,3431.0,3430.9,1.31440391]
[1735651800300,0.49588689,3431.2,3430.9,3.0669476]
[1735651800507,1.9742,3431.5,3431.0,2.33648804]
[1735651800704,0.29189,3431.2,3431.1,4.34443238]
[1735651800902,5.98606085,3431.8,3431.1,4.34443238]
[1735651801206,0.29188,3431.3,3431.2,2.33635365]
[1735651801501,3.2078,3431.8,3431.2,4.52682476]
[1735651801702,0.29186,3431.5,3431.4,3.2078]
[1735651801900,0.29186,3431.5,3431.4,6.18295315]
[1735651802203,0.29186,3431.5,3431.4,9.28589683]
[1735651802399,0.29186,3431.5,3431.4,8.37329221]
[1735651802604,0.29186,3431.5,3431.4,5.16549221]
[1735651803302,0.29186,3431.5,3431.4,2.75622887]
[1735651803505,0.10889243,3431.8,3431.4,3.66843689]
[1735651803694,0.72958,3431.9,3431.5,2.39069427]
[1735651804005,0.29185,3431.7,3431.6,3.66843689]
[1735651804304,0.29185,3431.7,3431.6,4.3984651]
[1735651804500,0.29185,3431.7,3431.6,3.48601642]
[1735651804501,3.07011085,3431.7,3431.6,3.48601642]
[1735651804704,7.44944307,3431.7,3431.6,2.79980642]
[1735651804905,2.44944307,3431.7,3431.6,2.79980642]
[1735651805100,0.29185,3431.7,3431.6,2.79980642]
[1735651805405,4.23716085,3432.6,3431.6,2.79980642]
[1735651805406,7.293,3433.3,3431.6,2.79980642]
[1735651805702,0.2918,3432.3,3432.2,3.2078]
[1735651805907,0.2918,3432.3,3432.2,0.41693763]
[1735651806123,0.2918,3432.3,3431.2,3.2078]
[1735651806124,0.29188,3431.3,3431.2,3.2078]
[1735651806403,1.79282117,3431.6,3431.2,4.88663987]
[1735651806709,0.29187,3431.4,3431.3,1.31387468]
[1735651806902,2.77826085,3432.0,3431.3,0.36496519]
[1735651806903,0.72958,3431.9,3431.3,0.36496519]
[1735651807102,0.29188,3431.3,3431.2,3.2078]
[1735651807301,0.29188,3431.3,3431.2,4.8868275]
[1735651807704,0.29187,3431.5,3431.2,4.8868275]
[1735651807906,1.74824,3432.2,3431.3,1.6790275]
[1735651808106,0.29184,3431.8,3431.7,3.2078]
[1735651808310,0.29184,3431.8,3431.7,4.15681554]
[1735651808810,0.5223,3432.2,3431.7,4.15681554]
[1735651809011,0.5223,3432.2,3431.8,0.94901554]
[1735651809311,0.29182,3432.0,3431.9,3.64003123]
[1735651809504,0.5223,3432.2,3431.9,4.52680928]
[1735651809814,0.29181,3432.1,3432.0,4.52680928]
[1735651810009,5.29181,3432.1,3432.0,3.88453928]
[1735651810312,2.55428674,3432.1,3432.0,2.84782483]
[1735651810503,2.55428674,3432.1,3432.0,1.27745036]
[1735651810504,0.9117325,3432.1,3432.0,1.27745036]
[1735651810807,0.9117325,3432.1,3432.0,3.6e-07]
[1735651811512,5.29181,3432.1,3432.0,6.59e-06]
[1735651811707,2.77826085,3432.1,3432.0,6.59e-06]
[1735651811912,4.50307085,3432.1,3432.0,6.59e-06]
[1735651812311,3.18896821,3432.1,3432.0,6.59e-06]
[1735651812515,8.22547119,3432.1,3432.0,6.59e-06]
[1735651812804,8.22547119,3432.1,3430.8,1.0417]
[1735651812805,0.72973,3431.3,3430.8,1.0417]
[1735651813010,2.41305345,3431.2,3430.8,1.0417]
[1735651813211,0.29192,3430.8,3430.7,3.2078]
[1735651813411,3.07018085,3430.8,3430.7,3.2078]
[1735651813608,3.07018085,3430.8,3430.2,1.0458]
[1735651813609,2.95980273,3430.8,3430.3,3.2078]
[1735651813808,0.29195,3430.5,3430.4,0.73029818]
[1735651814505,0.72978,3431.0,3430.4,0.73029818]
[1735651814708,0.72978,3431.0,3430.5,1.75261803]
[1735651814709,0.29194,3430.6,3430.5,1.75261803]
[1735651815110,3.49974,3430.6,3430.5,1.75261803]
[1735651815412,3.26585333,3430.6,3430.5,0.34820803]
[1735651815609,3.26585333,3430.6,3430.5,8.03e-06]
[1735651815911,8.26585333,3430.6,3430.5,8.03e-06]
[1735651816312,0.29203,3429.5,3429.4,3.2078]
[1735651816514,1.79193588,3429.8,3429.4,3.2078]
[1735651816817,1.79193588,3429.8,3429.4,1.27835901]
[1735651816818,3.2078,3429.5,3429.4,1.27835901]
[1735651817009,0.29209,3428.9,3428.8,3.2078]
[1735651817211,0.29209,3428.9,3428.8,10.1373981]
[1735651817916,5.98606085,3429.8,3428.8,10.1373981]
[1735651818110,0.29201,3429.8,3429.3,3.2078]
[1735651818315,0.29201,3429.8,3429.7,3.2078]
[1735651818512,8.45265224,3430.4,3429.7,4.3626071]
[1735651818711,5.67439139,3430.1,3429.8,1.8553071]
[1735651818911,4.94392057,3430.1,3429.9,1.1548071]
[1735651819114,4.94392057,3430.1,3430.0,1.1548071]
[1735651819314,4.94392057,3430.1,3430.0,3.16369487]
[1735651819511,5.23590057,3430.1,3430.0,4.05644828]
[1735651819706,0.29198,3430.1,3430.0,4.05644828]
[1735651820315,2.33990081,3430.4,3430.0,4.64072031]
[1735651820618,2.33990081,3430.4,3430.1,8.76143112]
[1735651820818,1.35379567,3430.4,3430.2,5.55363112]
[1735651821022,7.41906085,3430.8,3430.3,2.63183254]
[1735651821324,0.29195,3430.5,3430.4,6.83160163]
[1735651821625,0.29195,3430.5,3430.4,4.57903822]
[1735651821925,3.64870887,3430.5,3430.4,1.68546822]
[1735651822118,3.64870887,3430.5,3429.2,0.7028]
[1735651822319,0.29205,3429.3,3429.2,0.7028]
[1735651822615,0.29205,3429.3,3429.2,0.88235467]
[1735651823625,0.29209,3428.9,3428.5,3.2078]
[1735651823825,1.86503533,3429.4,3428.5,10.21018474]
[1735651824027,0.29205,3429.3,3429.0,3.2078]
[1735651824218,0.29204,3429.4,3429.1,1.459]
[1735651824412,2.77826085,3429.8,3429.1,2.1736]
[1735651824620,0.52100123,3430.1,3429.4,3.2078]
[1735651824825,0.292,3430.0,3429.8,3.2078]
[1735651825018,0.292,3430.0,3429.9,0.7136]
[1735651825220,2.04774983,3430.2,3429.9,1.17005082]
[1735651825424,2.04774983,3430.2,3430.0,0.65785645]
[1735651825623,2.04774983,3430.2,3430.1,1.62224338]
[1735651825826,2.33972983,3430.2,3430.1,2.07873279]
[1735651826219,7.33972983,3430.2,3430.1,1.45073279]
[1735651826420,7.33972983,3430.2,3430.1,0.56825017]
[1735651826619,3.07024085,3430.2,3430.1,1.7e-07]
[1735651826922,0.29198,3430.2,3430.1,1.7e-07]
[1735651827521,5.98606085,3430.9,3430.1,8.43768491]
[1735651827725,0.29195,3430.5,3430.4,3.2078]
[1735651828023,5.62083624,3430.9,3430.4,3.2078]
[1735651828229,3.07021085,3430.5,3430.4,3.2078]
[1735651828527,2.41295747,3430.5,3430.1,1.4353]
[1735651828723,1.13500523,3430.5,3430.1,1.4353]
[1735651828926,0.29198,3430.2,3430.1,1.4353]
[1735651829529,0.72982,3430.8,3430.1,1.4353]
[1735651829724,0.29198,3430.2,3430.1,1.4353]
[1735651829919,5.62083624,3430.9,3430.2,0.29197]
[1735651830124,0.29192,3430.9,3430.8,3.2078]
[1735651830330,2.77826085,3431.1,3430.8,3.93806207]
[1735651830630,2.77826085,3431.1,3430.1,8.43768474]
[1735651830631,0.29191,3431.0,3430.9,1.64303781]
[1735651830824,3.07017085,3431.0,3430.9,1.64303781]
[1735651831023,3.78887085,3431.0,3430.9,1.0387492]
[1735651831229,3.49696085,3431.0,3430.9,9.2e-06]
[1735651831438,0.29198,3430.2,3430.1,0.7323]
[1735651831633,0.72985,3430.7,3429.6,3.9468]
[1735651831634,0.29202,3429.7,3429.6,3.9468]
[1735651831929,0.72992,3430.3,3429.6,5.26146482]
[1735651832127,0.29201,3429.8,3429.7,1.86249523]
[1735651832429,2.77761546,3430.1,3429.7,3.87108013]
[1735651832731,0.29006608,3429.9,3429.8,3.87108013]
[1735651833428,0.29006608,3429.9,3429.8,3.28679003]
[1735651833633,0.29006608,3429.9,3429.8,4.327577]
[1735651833820,0.29006608,3429.9,3429.8,11.32996174]
[1735651834020,0.29006608,3429.9,3429.8,4.327577]
[1735651834235,2.15472327,3430.1,3429.8,4.69276189]
[1735651834424,0.29199,3430.0,3429.9,3.59713593]
[1735651834632,0.81307347,3430.4,3429.9,8.81352083]
[1735651834824,0.29198,3430.1,3430.0,5.60572083]
[1735651835131,3.07024085,3430.1,3430.0,5.60572083]
[1735651835332,3.07024085,3430.1,3430.0,4.3275157]
[1735651835638,8.07024085,3430.1,3430.0,2.25331083]
[1735651835823,8.81204085,3430.1,3430.0,1.27491083]
[1735651836029,3.81204085,3430.1,3430.0,8.3e-07]
[1735651836431,3.52006085,3430.1,3429.5,3.2078]
[1735651836733,0.29203,3429.6,3429.5,3.2078]
[1735651836933,3.2078,3430.2,3429.5,11.23290133]
[1735651837234,2.77826085,3430.3,3429.9,3.2078]
[1735651837235,0.29199,3430.0,3429.9,3.2078]
[1735651837434,0.29199,3430.0,3429.9,1.02271659]
[1735651837737,1.72599,3430.1,3429.9,11.23290133]
[1735651837931,1.72599,3430.1,3430.0,1.02271659]
[1735651838128,1.434,3430.2,3430.0,1.02271659]
[1735651838436,1.434,3430.7,3430.1,1.02271659]
[1735651838633,0.29196,3430.5,3430.4,3.2078]
[1735651838928,0.29196,3430.5,3430.4,1.02271659]
[1735651839135,0.29196,3430.5,3430.4,1.47914886]
[1735651839332,1.434,3430.5,3430.4,1.02271659]
[1735651839628,1.434,3430.5,3430.4,3.1222867]
[1735651839629,1.72596,3430.5,3430.4,3.1222867]
[1735651839837,1.72596,3430.5,3430.4,2.39200144]
[1735651840029,1.72596,3430.5,3430.4,3.12235462]
[1735651840231,1.72596,3430.5,3430.4,2.53378462]
[1735651840431,4.20337691,3430.5,3430.4,2.53378462]
[1735651840627,0.99557691,3430.5,3430.4,0.89057487]
[1735651840824,1.412,3430.5,3430.4,0.89057487]
[1735651841028,1.70396,3430.5,3430.4,0.89057487]
[1735651841228,4.91176,3430.5,3430.4,4.87e-06]
[1735651841631,0.29203,3429.6,3429.5,3.2078]
[1735651841934,3.13179543,3429.6,3429.5,3.2078]
[1735651842136,2.9010919,3429.6,3429.5,3.2078]
[1735651842439,0.29209,3428.8,3428.7,4.6652]
[1735651842634,0.29209,3428.8,3428.7,11.66758474]
[1735651843431,0.29209,3428.9,3428.7,11.66758474]
[1735651843731,2.12072767,3429.5,3428.8,0.9131534]
[1735651843935,0.29203,3429.5,3429.4,3.2078]
[1735651844248,0.29203,3429.5,3429.4,4.1209534]
[1735651844537,1.70503,3429.5,3429.4,0.9131534]
[1735651844731,0.73003,3429.8,3429.4,4.1209534]
[1735651845039,0.29203,3429.6,3429.5,0.9131534]
[1735651845235,1.17906152,3429.7,3429.5,0.9131534]
[1735651845434,0.29203,3429.6,3429.4,3.2078]
[1735651845735,0.29203,3429.6,3429.5,2.77595413]
[1735651845937,0.81363884,3429.7,3429.5,2.77595413]
[1735651846135,0.29202,3429.7,3429.6,1.86282541]
[1735651846339,4.48328085,3429.7,3429.6,4.05438315]
[1735651846636,2.76634095,3429.7,3429.6,5.46419187]
[1735651846844,1.413,3429.7,3429.6,6.35094518]
[1735651847137,3.07028085,3429.7,3429.6,5.43781646]
[1735651847539,3.07028085,3429.7,3429.6,5.88121287]
[1735651847732,3.07028085,3429.7,3429.6,4.62913388]
[1735651848337,3.07028085,3429.7,3429.6,2.5568516]
[1735651848530,3.07028085,3429.7,3429.6,4.57896797]
[1735651848732,1.46333414,3429.7,3429.6,4.57896797]
[1735651848937,1.46333414,3429.7,3429.6,5.48641325]
[1735651848938,1.75535414,3429.7,3429.6,5.48641325]
[1735651849737,2.77826085,3430.1,3429.6,13.2192169]
[1735651849946,0.292,3429.9,3429.8,3.2078]
[1735651850243,0.292,3429.9,3429.8,9.42463216]
[1735651850640,0.24397249,3430.0,3429.8,9.42463216]
[1735651850842,0.53596249,3430.0,3429.9,6.21683216]
[1735651851232,0.53596249,3430.0,3429.9,7.23943282]
[1735651851644,0.53596249,3430.0,3429.9,6.50901391]
[1735651851839,1.413,3430.0,3429.9,7.23942011]
[1735651852146,1.70499,3430.0,3429.9,7.23942011]
[1735651852549,1.413,3430.0,3429.9,7.23942011]
[1735651852747,0.42670288,3430.0,3429.9,7.23942011]
[1735651853046,0.42670288,3430.0,3429.9,5.60157212]
[1735651853638,0.42670288,3430.0,3429.9,6.33203824]
[1735651853843,0.42670288,3430.0,3429.9,8.43212109]
[1735651854243,4.19126085,3430.0,3429.9,8.43212109]
[1735651854445,4.48325085,3430.0,3429.9,8.43212109]
[1735651854646,3.57016512,3430.0,3429.9,8.43212109]
[1735651854944,3.57016512,3430.0,3429.9,7.76180109]
[1735651855148,4.07003531,3430.0,3429.9,6.11825799]
[1735651855646,4.07003531,3430.0,3429.9,4.88508799]
[1735651855837,4.07003531,3430.0,3429.9,3.62179824]
[1735651856044,4.07003531,3430.0,3429.9,2.88023824]
[1735651856243,4.07003531,3430.0,3429.9,2.14977212]
[1735651856443,4.07003531,3430.0,3429.9,0.47917146]
[1735651856741,0.29203,3429.5,3429.4,3.2078]
[1735651857554,0.73270431,3429.6,3429.4,4.96099213]
[1735651857853,0.29203,3429.6,3429.5,1.75318928]
[1735651858151,5.72293331,3429.7,3429.5,8.75557402]
[1735651858346,6.01495331,3429.7,3429.6,1.75318928]
[1735651858651,6.01495331,3429.7,3429.6,2.66726767]
[1735651858652,0.29202,3429.7,3429.6,2.66726767]
[1735651858847,3.45852668,3429.8,3429.6,2.66726767]
[1735651858848,2.47228863,3429.8,3429.6,2.66726767]
[1735651859050,2.76429863,3429.8,3429.7,1.90266767]
[1735651859250,5.54255948,3429.8,3429.7,1.90266767]
[1735651859455,5.54255948,3429.8,3429.7,1.02269541]
[1735651859657,5.54255948,3429.8,3429.7,3.09511995]
[1735651859954,3.5337234,3429.8,3429.7,3.09511995]
[1735651860348,3.00776454,3429.8,3429.7,3.09511995]
[1735651860544,2.27726266,3429.8,3429.7,0.44366949]
[1735651860762,2.27726266,3429.8,3429.2,0.7683]
[1735651861056,0.29209,3428.9,3428.8,3.9724]
[1735651861453,3.07035085,3428.9,3428.8,2.51811253]
[1735651861653,2.14316,3429.2,3428.8,2.51811253]
[1735651861861,0.29208,3429.0,3428.9,1.75351253]
[1735651862456,0.73009,3429.5,3428.9,8.75583681]
[1735651862662,0.29205,3429.3,3429.2,3.2078]
[1735651862863,0.29205,3429.3,3429.2,4.96125207]
[1735651863157,3.07031085,3429.3,3429.2,4.96125207]
[1735651863361,3.07031085,3429.3,3429.2,0.73056976]
[1735651864464,2.77826085,3429.3,3428.8,3.9724]
[1735651864664,0.29209,3428.9,3428.8,3.9724]
[1735651864864,0.29209,3428.9,3428.8,5.57982882]
[1735651865565,0.73017,3429.2,3428.8,4.55692185]
[1735651865759,3.50840085,3429.3,3428.9,0.58452185]
[1735651866061,0.29207,3429.1,3429.0,8.9e-06]
[1735651866261,3.07033085,3429.1,3429.0,8.9e-06]
[1735651866569,7.77826085,3429.1,3427.9,4.0126]
[1735651866767,0.29216,3428.0,3427.9,11.01498474]
[1735651867066,0.29216,3428.0,3427.9,12.24466264]
[1735651867365,0.29216,3428.0,3427.9,5.2914714]
[1735651867863,0.29216,3428.0,3427.9,2.8587688]
[1735651868460,1.413,3428.3,3427.9,9.86115354]
[1735651868668,0.29215,3428.1,3428.0,2.0539688]
[1735651869169,0.29215,3428.1,3428.0,10.28515644]
[1735651869372,0.29215,3428.1,3428.0,10.28490909]
[1735651869966,0.29215,3428.1,3428.0,9.05635354]
[1735651870465,0.29215,3428.1,3428.0,2.7190809]
[1735651873070,0.29215,3428.1,3428.0,10.17821749]
[1735651873267,9.54988933,3429.1,3428.0,11.42441669]
[1735651873464,0.29209,3428.8,3428.7,3.2078]
[1735651873659,10.93488933,3429.1,3428.7,6.38363275]
[1735651873871,0.29209,3428.9,3428.8,3.97283275]
[1735651874370,0.29209,3428.9,3428.8,3.17583275]
[1735651874566,0.29209,3428.9,3428.8,2.81530805]
[1735651874765,0.29209,3428.9,3428.8,1.9017574]
[1735651875071,0.29209,3428.9,3428.8,1.89637184]
[1735651875371,0.29209,3428.8,3428.7,3.2078]
[1735651875874,0.29209,3428.8,3428.7,10.21018474]
[1735651876563,3.92930562,3429.1,3428.7,13.47324178]
[1735651876770,0.29209,3428.9,3428.8,3.26305704]
[1735651876972,0.29209,3428.9,3428.8,4.99827388]
[1735651877670,0.29209,3428.9,3428.8,5.81267388]
[1735651878475,0.29209,3428.9,3428.8,4.99827388]
[1735651878676,0.29209,3428.9,3428.8,3.75902902]
[1735651878872,0.29209,3428.9,3428.8,2.48044819]
[1735651880074,1.73014,3429.3,3428.8,12.00167875]
[1735651880075,1.0,3429.3,3428.8,12.00167875]
[1735651880265,6.77162848,3429.8,3429.2,0.29206]
[1735651880469,6.77162848,3429.8,3429.7,3.2078]
[1735651880672,2.43952848,3429.8,3429.7,3.2078]
[1735651880866,8.99238222,3430.2,3429.7,10.50219474]
[1735651881173,0.29195,3430.5,3429.7,10.21018474]
[1735651881373,2.32585888,3430.6,3430.2,3.2078]
[1735651881568,0.29194,3430.6,3430.3,5.01342231]
[1735651881773,0.29195,3430.6,3430.4,6.74394689]
[1735651882075,5.71871929,3430.7,3430.5,6.74394689]
[1735651882270,8.79000353,3430.7,3430.6,9.95174689]
[1735651882471,3.07128424,3430.7,3430.6,7.69051163]
[1735651882676,3.07128424,3430.7,3430.6,6.96026295]
[1735651882878,3.07128424,3430.7,3430.6,3.75246295]
[1735651883178,3.07128424,3430.7,3430.6,2.83147721]
[1735651883879,3.07128424,3430.7,3430.6,1.1746152]
[1735651884079,3.07128424,3430.7,3430.6,3.55334566]
[1735651884290,3.07128424,3430.7,3430.6,3.19649997]
[1735651884478,3.07128424,3430.7,3430.6,2.38694789]
[1735651884777,0.29202,3429.7,3429.6,3.2078]
[1735651885080,0.29202,3429.7,3429.6,12.72564386]
[1735651885282,0.29202,3429.7,3429.6,11.48837769]
[1735651885679,0.29202,3429.7,3429.6,4.48599295]
[1735651885876,0.29202,3429.7,3429.6,1.27819295]
[1735651886079,0.29205,3429.3,3429.2,3.2078]
[1735651886584,1.67605,3429.3,3429.2,3.2078]
[1735651886985,3.59775424,3429.9,3429.2,10.21018474]
[1735651887179,0.29202,3429.8,3429.6,3.2078]
[1735651887684,0.29202,3429.8,3429.7,0.8126]
[1735651887876,2.77935424,3429.9,3429.7,0.8126]
[1735651888079,0.292,3430.0,3429.7,7.81498474]
[1735651888383,0.29201,3429.8,3429.7,7.81498474]
[1735651888585,0.29201,3429.8,3429.7,9.02882781]
[1735651888782,0.292,3429.9,3429.7,9.0287768]
[1735651888983,0.292,3430.0,3429.7,7.81498474]
[1735651889183,0.29198,3430.2,3429.7,7.81498474]
[1735651889381,0.292,3429.9,3429.7,7.81498474]
[1735651889581,4.16335424,3430.3,3429.7,7.81498474]
[1735651889783,0.8207,3430.4,3430.2,3.2078]
[1735651889983,0.29195,3430.5,3430.2,3.2078]
[1735651890183,2.77935424,3430.7,3430.2,10.21018474]
[1735651890385,0.29193,3430.8,3430.6,3.2078]
[1735651890686,1.1126,3431.1,3430.7,2.04119893]
[1735651890881,3.07124424,3431.3,3431.0,3.2078]
[1735651891080,0.2919,3431.2,3431.0,3.2078]
[1735651891283,2.77935424,3431.3,3431.0,10.21018474]
[1735651891484,3.07123424,3431.3,3431.0,10.21018474]
[1735651891680,2.77935424,3431.7,3431.0,10.21018474]
[1735651891889,0.29186,3431.6,3431.5,3.2078]
[1735651892286,0.29186,3431.6,3431.5,10.21018474]
[1735651893289,2.77935424,3431.7,3431.5,10.21018474]
[1735651893490,0.29186,3431.6,3431.5,10.21018474]
[1735651893893,0.29186,3431.6,3431.5,7.00238474]
[1735651894285,0.29186,3431.6,3431.5,10.21018474]
[1735651894490,0.29186,3431.6,3431.5,7.00238474]
[1735651894785,0.29186,3431.6,3431.5,0.58405311]
[1735651894985,0.7893,3431.6,3431.4,0.3550534]
[1735651895198,0.29187,3431.4,3431.3,0.3550534]
[1735651895485,2.77935424,3431.4,3430.8,3.2078]
[1735651895685,3.07127424,3430.9,3430.8,3.2078]
[1735651895883,3.07127424,3430.9,3430.8,10.21018474]
[1735651896586,3.07127424,3430.9,3430.8,10.65867792]
[1735651896786,3.07127424,3430.9,3430.8,0.4293511]
[1735651897096,7.37115424,3430.9,3429.8,4.0231]
[1735651897392,0.292,3429.9,3429.8,11.02548474]
[1735651900190,2.77935424,3430.6,3429.8,4.0231]
[1735651900397,0.29196,3430.4,3430.3,3.2078]
[1735651900596,0.29196,3430.4,3430.3,4.48578]
[1735651900798,0.29196,3430.4,3430.3,8.4168205]
[1735651901300,2.77935424,3431.3,3430.4,4.904]
[1735651901492,0.2919,3431.1,3431.0,3.2078]
[1735651901700,0.2919,3431.1,3431.0,4.42071073]
[1735651901893,0.2919,3431.1,3431.0,6.85037699]
[1735651902986,0.2919,3431.1,3431.0,2.42966626]
[1735651903398,0.2919,3431.1,3430.7,4.904]
[1735651903399,0.29192,3430.8,3430.7,4.904]
[1735651903606,0.29192,3430.8,3430.7,6.05568626]
[1735651903798,0.29192,3430.8,3430.7,7.33351316]
[1735651904294,0.29192,3430.8,3430.7,8.54784553]
[1735651904506,0.29192,3430.8,3430.7,7.33351316]
[1735651904895,0.29192,3430.8,3430.7,8.54820766]
[1735651905293,0.7575,3431.3,3430.7,10.34848228]
[1735651905294,2.77935424,3431.3,3430.7,10.34848228]
[1735651905497,0.29189,3431.2,3431.1,3.2078]
[1735651905699,0.29189,3431.2,3431.1,5.57418076]
[1735651905896,0.29189,3431.2,3431.1,7.87405885]